bitfinex/quotes_ETHUSD_20241109
["timestamp","ask_amount","ask_price","bid_price","bid_amount"]
[1731168240725,0.7607,3044.4,3043.7,0.7949]
[1731168240967,0.7607,3044.4,3043.7,0.89481125]
[1731168241934,0.7607,3044.4,3043.7,0.09991125]
[1731168242130,0.7607,3044.4,3043.5,2.72565237]
[1731168242358,0.7607,3044.4,3043.8,0.09982883]
[1731168242543,0.7607,3044.4,3043.5,2.72565237]
[1731168242756,0.7607,3044.4,3043.9,0.09974641]
[1731168242960,0.7607,3044.4,3043.5,2.72565237]
[1731168243167,0.7607,3044.4,3044.0,0.099664]
[1731168243380,0.7607,3044.4,3043.5,2.72565237]
[1731168243547,0.7607,3044.4,3044.1,0.0995816]
[1731168243871,0.7607,3044.4,3043.5,2.72565237]
[1731168244241,0.7607,3044.4,3043.6,0.09999367]
[1731168250520,0.7607,3044.4,3043.3,3.0]
[1731168251284,0.7607,3044.4,3043.4,0.10005818]
[1731168255521,0.7607,3044.4,3043.5,2.72565237]
[1731168255749,0.7607,3044.4,3043.5,2.82570338]
[1731168258158,0.7607,3044.4,3043.5,0.10005101]
[1731168258317,0.7607,3044.4,3043.4,2.72565237]
[1731168258514,0.7607,3044.4,3043.5,0.1000761]
[1731168258759,1.44868621,3044.4,3043.5,0.1000761]
[1731168258981,0.8156,3044.3,3043.4,2.72565237]
[1731168259884,0.8156,3044.3,3043.5,0.09990501]
[1731168260204,0.8156,3044.2,3043.5,0.09990501]
[1731168264081,0.8156,3044.5,3044.1,2.72565237]
[1731168264584,0.8156,3044.5,3044.2,0.09936738]
[1731168271289,0.8156,3044.5,3044.3,1.2578494]
[1731168271688,0.8156,3044.5,3044.4,0.09916333]
[1731168273287,0.68798621,3044.9,3044.4,0.09916333]
[1731168273515,0.7914,3044.8,3044.4,0.09916333]
[1731168273729,0.7914,3044.8,3044.3,1.2578494]
[1731168273892,0.7914,3044.8,3044.5,1.2578494]
[1731168274739,0.7914,3044.8,3044.6,0.09899857]
[1731168274945,0.7914,3044.8,3044.5,1.2578494]
[1731168275141,0.7914,3044.8,3044.6,0.09899857]
[1731168275369,0.7914,3044.8,3044.5,1.2578494]
[1731168275863,0.7914,3044.8,3044.7,1.2578494]
[1731168276360,0.7914,3044.8,3044.7,0.09891619]
[1731168276668,0.7914,3044.8,3044.4,1.2578494]
[1731168277054,0.7914,3044.8,3044.6,1.2578494]
[1731168277548,0.7914,3044.8,3044.7,0.09891619]
[1731168278543,0.7914,3044.8,3044.6,1.2578494]
[1731168278933,0.7914,3044.8,3044.7,0.09891619]
[1731168279138,0.7914,3044.8,3044.6,1.2578494]
[1731168279538,0.7914,3044.8,3044.7,0.09892862]
[1731168280067,0.7914,3044.8,3044.6,1.2578494]
[1731168280533,0.7914,3044.8,3044.7,0.09895549]
[1731168280727,0.7914,3044.8,3043.9,3.0]
[1731168280927,0.7914,3044.8,3044.3,1.2578494]
[1731168281179,0.7914,3044.8,3044.5,1.2578494]
[1731168281776,0.7914,3044.8,3044.6,0.09903787]
[1731168283071,0.7914,3044.8,3044.7,1.2578494]
[1731168283570,0.7914,3044.8,3044.7,1.35680489]
[1731168283732,0.7914,3044.8,3044.7,0.09895549]
[1731168284052,0.7914,3044.8,3044.5,1.2578494]
[1731168284274,0.7914,3044.8,3044.7,0.09898236]
[1731168284433,0.7914,3044.8,3044.6,0.09906474]
[1731168284633,0.7914,3044.8,3044.5,1.2578494]
[1731168284833,0.7914,3044.8,3044.7,1.35685864]
[1731168285160,0.7914,3044.8,3044.7,1.2578494]
[1731168285633,0.7914,3044.8,3044.7,1.35676559]
[1731168287069,0.7951,3045.2,3044.7,1.35676559]
[1731168287574,0.7951,3045.2,3044.7,1.2578494]
[1731168289890,0.7951,3045.2,3044.2,0.8319]
[1731168290098,0.7951,3045.2,3044.5,1.2578494]
[1731168290388,0.7951,3045.1,3044.6,0.09899857]
[1731168290545,0.7951,3045.1,3044.3,1.2578494]
[1731168290749,0.7951,3045.1,3044.4,0.09916333]
[1731168292152,0.7951,3045.1,3044.5,1.2578494]
[1731168292548,0.96070204,3045.1,3044.6,0.09899857]
[1731168292748,0.96070204,3045.1,3044.3,1.2578494]
[1731168292960,0.96070204,3045.1,3044.4,0.09916333]
[1731168294552,0.96070204,3045.1,3044.1,1.2578494]
[1731168294867,0.8183,3045.0,3044.1,1.2578494]
[1731168295092,0.8183,3044.8,3044.1,1.2578494]
[1731168296280,0.8183,3044.8,3043.9,1.2578494]
[1731168297767,0.8183,3044.8,3044.1,1.2578494]
[1731168301701,0.8183,3044.8,3043.9,1.2578494]
[1731168301901,0.769,3044.7,3043.6,0.34161269]
[1731168302116,0.769,3044.5,3043.6,0.34161269]
[1731168304213,0.769,3044.5,3043.7,0.09988338]
[1731168304513,0.769,3044.4,3043.7,0.09988338]
[1731168304913,0.769,3044.4,3043.2,1.2578494]
[1731168305117,0.769,3044.1,3043.0,1.5995305]
[1731168305336,0.769,3044.1,3043.0,1.2578494]
[1731168306013,0.769,3044.1,3042.4,3.0]
[1731168306216,0.769,3043.9,3043.1,0.10037804]
[1731168306518,0.769,3043.9,3042.5,0.8059]
[1731168306519,1.2578494,3043.8,3042.6,1.2578494]
[1731168306724,0.79,3043.7,3042.6,1.2578494]
[1731168307015,0.79,3043.6,3042.6,1.2578494]
[1731168307318,0.79,3043.4,3042.6,1.2578494]
[1731168308320,0.79,3043.3,3042.6,1.2578494]
[1731168308512,0.79,3043.3,3042.7,0.10070793]
[1731168310100,0.68798621,3043.3,3042.7,0.10070793]
[1731168310291,0.79,3043.1,3042.5,1.2578494]
[1731168310493,0.79,3043.1,3042.8,0.10062545]
[1731168310693,0.79,3043.1,3042.5,1.2578494]
[1731168311203,0.79,3043.1,3042.6,0.10079041]
[1731168311852,0.68798621,3043.0,3042.6,0.10079041]
[1731168312015,1.47798621,3042.9,3042.2,1.2578494]
[1731168312354,0.79,3042.8,3042.0,1.2578494]
[1731168313316,0.79,3042.7,3042.0,1.2578494]
[1731168314948,0.79,3042.7,3042.1,0.10120292]
[1731168315462,0.79,3042.7,3041.8,1.59964277]
[1731168315627,0.79,3042.7,3042.2,0.10112041]
[1731168315954,0.79,3042.7,3041.8,1.59964277]
[1731168316130,0.79,3042.6,3041.8,1.59964277]
[1731168316332,0.79,3042.6,3041.9,0.10136796]
[1731168316734,0.79,3042.6,3041.8,1.59964277]
[1731168316939,0.79,3042.6,3041.8,0.34179337]
[1731168317143,0.79,3042.6,3041.9,1.35921736]
[1731168317346,0.79,3042.5,3041.9,1.35921736]
[1731168322057,0.79,3042.5,3041.9,0.10136796]
[1731168322266,0.79,3042.5,3041.7,1.2578494]
[1731168322467,0.79,3042.5,3042.0,0.10128544]
[1731168322639,0.79,3042.5,3041.6,1.2578494]
[1731168322984,0.79,3042.5,3041.8,1.2578494]
[1731168323342,0.79,3042.5,3041.9,0.10136796]
[1731168323880,0.79,3042.5,3041.8,1.2578494]
[1731168324175,0.79,3042.5,3042.0,0.10128544]
[1731168324380,0.79,3042.5,3041.9,0.10136796]
[1731168324587,0.79,3042.5,3041.8,1.2578494]
[1731168324883,0.79,3042.5,3041.9,0.10136796]
[1731168325188,0.79,3042.5,3041.8,1.2578494]
[1731168325480,0.79,3042.5,3041.9,0.10136796]
[1731168325678,0.79,3042.5,3041.8,1.2578494]
[1731168325980,0.79,3042.5,3042.0,0.10128544]
[1731168326197,0.79,3042.5,3041.9,0.10136796]
[1731168326488,0.79,3042.5,3041.6,1.2578494]
[1731168326657,0.79,3042.5,3042.0,0.10114213]
[1731168326860,0.79,3042.5,3041.6,1.2578494]
[1731168327075,0.79,3042.5,3042.1,0.10105962]
[1731168327272,0.79,3042.5,3041.6,1.2578494]
[1731168327479,0.79,3042.5,3042.2,0.10097711]
[1731168327791,0.79,3042.5,3041.6,1.2578494]
[1731168328163,0.79,3042.5,3041.7,0.1013901]
[1731168329491,0.7827,3042.4,3041.8,1.2578494]
[1731168329694,0.7827,3042.4,3041.8,1.35920715]
[1731168330252,2.0405494,3042.4,3041.8,0.10135775]
[1731168330462,2.0405494,3042.4,3041.1,1.2578494]
[1731168330463,0.7827,3042.3,3041.1,1.2578494]
[1731168330662,0.7827,3042.1,3041.0,1.2578494]
[1731168331487,0.01,3042.0,3040.6,0.8042]
[1731168331760,0.7827,3041.9,3040.8,1.2578494]
[1731168332106,0.7827,3041.9,3040.6,1.2578494]
[1731168332397,0.7827,3041.7,3040.8,1.2578494]
[1731168332759,0.7827,3041.7,3040.9,0.07193572]
[1731168333109,0.7827,3041.7,3040.8,1.2578494]
[1731168333706,0.7827,3041.7,3040.2,1.59956864]
[1731168333707,0.7827,3041.5,3040.5,1.2578494]
[1731168334004,0.7827,3041.3,3040.5,1.2578494]
[1731168334581,0.7827,3041.3,3040.2,1.14591924]
[1731168334828,0.7827,3041.3,3040.2,0.34171924]
[1731168334991,0.7827,3041.3,3040.1,1.2578494]
[1731168335193,0.7827,3041.1,3039.9,1.2578494]
[1731168335527,0.7827,3040.9,3039.5,3.0746566]
[1731168335697,0.7827,3040.8,3039.5,2.73324363]
[1731168335898,0.7827,3040.8,3039.6,0.0735981]
[1731168336282,12.36444535,3040.8,3039.5,2.73324363]
[1731168336626,0.7827,3041.3,3040.5,2.73324363]
[1731168338103,0.7827,3041.3,3040.4,0.8042]
[1731168338392,0.7827,3041.3,3040.5,0.0728795]
[1731168338925,0.7827,3041.3,3039.7,3.0]
[1731168338926,0.7827,3041.3,3040.0,3.0]
[1731168339110,0.01,3041.1,3039.7,3.0]
[1731168339313,11.58174535,3041.0,3040.1,0.07320605]
[1731168339609,0.7827,3040.8,3039.6,2.73324363]
[1731168339814,0.7927,3040.8,3039.3,3.87885699]
[1731168339983,0.7927,3040.8,3039.3,0.34141336]
[1731168340187,0.7927,3040.8,3039.0,3.53744363]
[1731168340188,0.7827,3040.5,3039.0,3.53744363]
[1731168340387,0.7827,3040.3,3039.1,0.0740228]
[1731168340724,0.7827,3040.3,3039.0,3.53744363]
[1731168341083,0.7827,3040.3,3039.1,0.0740228]
[1731168341284,0.7827,3040.1,3039.1,0.0740228]
[1731168341586,0.7827,3039.9,3038.5,3.53744363]
[1731168341792,0.7827,3039.9,3038.6,0.06581281]
[1731168342110,0.7827,3039.9,3038.6,0.07443137]
[1731168342432,0.7827,3039.9,3038.6,0.14024417]
[1731168342742,0.7827,3039.9,3038.6,0.07443137]
[1731168343187,0.7827,3039.9,3038.4,0.34150261]
[1731168343384,0.7827,3039.9,3038.5,0.0745131]
[1731168345606,0.7827,3039.7,3038.5,0.0745131]
[1731168345831,0.7827,3039.5,3038.5,0.0745131]
[1731168346389,0.7827,3039.5,3038.6,2.73324363]
[1731168346588,0.7827,3039.5,3038.9,2.73324363]
[1731168346847,11.58174535,3039.7,3039.0,0.0741045]
[1731168347131,11.58174535,3039.7,3039.5,2.73324363]
[1731168347316,0.7948,3040.2,3039.5,2.73324363]
[1731168347628,0.7948,3040.2,3039.6,0.07361435]
[1731168349119,0.7948,3040.2,3039.3,3.0]
[1731168349345,0.7948,3040.2,3039.7,0.07353268]
[1731168349654,0.7948,3040.2,3039.8,0.07345102]
[1731168350014,0.7948,3040.2,3038.7,2.73324363]
[1731168350354,0.7948,3040.2,3038.8,3.07426792]
[1731168350529,0.7948,3040.0,3038.8,3.07426792]
[1731168353013,0.7948,3040.0,3039.0,2.73324363]
[1731168353207,0.7948,3040.0,3039.3,2.73324363]
[1731168353451,0.7948,3040.0,3039.4,0.07377771]
[1731168353623,0.7948,3040.0,3039.4,0.13958043]
[1731168353959,0.7948,3040.0,3039.4,0.07377771]
[1731168355251,0.7948,3040.0,3039.2,0.7894]
[1731168355547,0.7948,3040.0,3039.5,0.07369603]
[1731168355711,0.7948,3040.0,3039.2,0.7894]
[1731168355912,0.7948,3040.0,3039.6,0.07361435]
[1731168356215,0.7948,3040.0,3039.7,0.07353268]
[1731168356407,0.7948,3040.0,3039.2,0.7894]
[1731168356613,0.7948,3040.0,3039.3,0.0738594]
[1731168357220,0.7948,3040.0,3039.3,2.80710303]
[1731168359651,0.7948,3040.0,3039.3,0.0738594]
[1731168359867,0.7948,3040.0,3039.1,3.0]
[1731168360309,0.7948,3040.0,3039.2,0.0739411]
[1731168360716,0.7948,3040.0,3039.0,2.73324363]
[1731168361349,0.7948,3040.0,3039.1,0.07399798]
[1731168366456,0.7948,3040.0,3039.0,2.73324363]
[1731168366659,0.7948,3040.0,3039.1,0.07399798]
[1731168369730,0.7948,3040.0,3039.3,2.73324363]
[1731168369937,0.7948,3040.0,3039.4,0.06579807]
[1731168370244,0.7948,3040.0,3039.6,2.73324363]
[1731168370478,0.7948,3040.0,3039.7,0.07350787]
[1731168370834,0.8279,3040.8,3039.7,0.07350787]
[1731168371067,0.8279,3040.8,3039.8,0.8162]
[1731168371275,0.8279,3040.8,3039.7,0.07350787]
[1731168371567,0.8279,3040.8,3039.9,0.07334454]
[1731168371781,0.8279,3040.8,3039.8,0.0734262]
[1731168371986,0.8279,3040.8,3040.0,0.07326289]
[1731168372282,0.8279,3040.8,3040.1,0.07318124]
[1731168372785,0.8279,3040.8,3039.6,3.54944363]
[1731168372956,0.8279,3040.8,3040.2,0.07309959]
[1731168373157,0.8279,3040.8,3039.6,3.54944363]
[1731168373358,0.8279,3040.8,3040.3,0.07301795]
[1731168373556,0.8279,3040.8,3039.6,3.54944363]
[1731168373870,0.8279,3040.8,3039.7,0.07350787]
[1731168375581,0.8279,3040.6,3039.7,0.07350787]
[1731168379169,0.8279,3041.0,3040.5,2.73324363]
[1731168379393,0.8279,3041.2,3040.5,2.73324363]
[1731168379588,0.8279,3041.2,3040.6,0.07277307]
[1731168379908,0.8279,3041.2,3040.2,3.54944363]
[1731168379909,0.8279,3041.2,3040.3,3.0]
[1731168380060,0.8279,3041.2,3040.7,0.07269145]
[1731168380263,0.8279,3041.2,3040.0,3.0]
[1731168380568,0.8279,3041.2,3040.8,0.07260984]
[1731168380766,0.8279,3041.2,3040.0,3.0]
[1731168381185,0.8279,3041.2,3040.1,0.07318124]
[1731168382206,0.8279,3041.2,3040.3,0.8162]
[1731168382608,0.8279,3041.2,3040.4,0.07293632]
[1731168383270,0.8279,3041.2,3040.5,2.79901464]
[1731168383472,0.8279,3041.2,3040.8,2.73324363]
[1731168383783,0.8279,3041.8,3040.8,2.73324363]
[1731168383983,2.13604501,3041.8,3040.9,0.07252823]
[1731168384169,0.8279,3041.8,3040.9,0.88196363]
[1731168384379,0.8279,3041.8,3041.1,2.73324363]
[1731168384771,0.8279,3041.8,3041.2,0.07228344]
[1731168385187,0.8279,3041.8,3040.8,2.73324363]
[1731168385368,0.8279,3041.8,3041.3,0.07220186]
[1731168385572,0.8279,3041.8,3040.8,2.73324363]
[1731168385772,0.8279,3041.8,3041.4,0.07212028]
[1731168385982,0.8279,3041.8,3040.7,3.0]
[1731168386210,0.8279,3041.8,3040.6,2.73324363]
[1731168386904,0.8279,3041.8,3040.7,0.07269145]
[1731168390503,0.8324,3041.6,3040.7,0.07269145]
[1731168395004,0.8324,3041.6,3041.2,2.73324363]
[1731168395527,0.8324,3041.6,3041.3,0.07209562]
[1731168396037,0.6608332,3042.1,3041.2,2.73324363]
[1731168396038,0.8324,3042.0,3041.2,2.73324363]
[1731168396223,0.8324,3042.0,3041.5,2.73324363]
[1731168396742,0.8324,3042.0,3041.6,0.07206833]
[1731168396946,8.7131684,3042.9,3041.6,0.07206833]
[1731168397153,0.87231684,3042.8,3041.6,0.07206833]
[1731168397304,0.87231684,3042.8,3041.3,0.55]
[1731168397502,0.67358636,3042.4,3041.3,0.55]
[1731168397732,0.67358636,3042.4,3041.4,0.07201404]
[1731168398598,0.67358636,3042.4,3041.0,3.0]
[1731168398805,0.67358636,3042.4,3041.5,0.07212334]
[1731168399104,0.67358636,3042.4,3041.6,0.0718509]
[1731168399325,0.68358636,3042.4,3041.6,0.0718509]
[1731168399635,0.68358636,3042.4,3040.9,2.73324363]
[1731168399842,3.0,3042.2,3040.9,2.73324363]
[1731168400031,0.8324,3042.0,3040.9,2.73324363]
[1731168400944,0.8324,3042.0,3041.0,0.07250472]
[1731168405247,0.8324,3041.9,3041.0,0.07250472]
[1731168409416,0.8324,3041.9,3040.9,2.73324363]
[1731168411427,0.7657,3041.8,3040.9,2.73324363]
[1731168415045,0.7657,3041.8,3040.7,3.0]
[1731168415552,0.7657,3041.8,3040.8,0.07245174]
[1731168415723,0.7657,3041.7,3040.8,0.07245174]
[1731168415929,0.7657,3041.5,3040.4,2.73324363]
[1731168416248,0.7657,3041.5,3040.5,3.0]
[1731168416643,0.7657,3041.5,3040.6,0.07259015]
[1731168419188,0.7657,3041.2,3040.1,2.73324363]
[1731168419389,0.7657,3041.2,3040.1,3.07521282]
[1731168419554,0.7657,3041.2,3040.2,0.07286702]
[1731168420237,0.7657,3041.2,3040.1,3.07521282]
[1731168420440,0.7657,3041.2,3040.2,3.0]
[1731168420977,0.7657,3041.2,3040.3,0.07281021]
[1731168422546,0.7657,3041.2,3040.4,2.73324363]
[1731168422781,0.7657,3041.2,3040.4,2.80597221]
[1731168423879,0.7657,3041.2,3040.4,0.07272858]
[1731168424246,0.7657,3041.2,3040.2,3.0]
[1731168424446,0.7657,3041.2,3040.5,0.07264695]
[1731168424687,0.7657,3041.2,3040.2,3.0]
[1731168424863,0.7657,3041.2,3040.6,0.07256575]
[1731168425182,0.7657,3041.2,3040.2,3.0]
[1731168425394,1.45368621,3041.2,3040.7,0.07248413]
[1731168425681,0.7657,3040.9,3039.5,2.73324363]
[1731168425880,0.7657,3040.8,3039.6,0.34188367]
[1731168426049,0.7657,3040.8,3039.6,0.41529027]
[1731168427085,0.7657,3040.8,3039.6,3.41529027]
[1731168427890,0.8153,3040.7,3039.6,3.41529027]
[1731168428467,0.8153,3040.7,3039.6,0.41529027]
[1731168428693,0.8153,3040.7,3039.6,3.41529027]
[1731168429183,0.8153,3040.6,3039.6,0.41529027]
[1731168429395,0.8153,3040.6,3039.6,0.0734066]
[1731168429684,0.8153,3040.4,3039.6,0.0734066]
[1731168430048,0.8153,3040.4,3039.5,2.73324363]
[1731168430249,0.8153,3040.4,3039.7,0.07334976]
[1731168430449,0.8153,3040.4,3039.3,0.34194349]
[1731168430450,0.8153,3040.4,3039.6,0.07343143]
[1731168430650,0.8153,3040.4,3039.8,0.07326809]
[1731168431084,0.8153,3040.4,3039.3,0.34194349]
[1731168431490,0.8153,3040.4,3039.4,0.07359479]
[1731168431698,0.8153,3040.3,3039.4,0.07359479]
[1731168439412,0.8153,3040.3,3039.3,0.34194349]
[1731168439617,0.8153,3040.3,3038.9,2.73324363]
[1731168439911,0.8153,3040.3,3039.4,0.07359479]
[1731168440109,0.8153,3040.3,3038.9,2.73324363]
[1731168440412,0.8153,3040.1,3039.0,0.07392157]
[1731168441108,0.8153,3039.9,3039.0,0.07392157]
[1731168441528,0.8153,3039.9,3038.7,3.0]
[1731168441673,0.8153,3039.9,3039.1,0.07383986]
[1731168441875,0.8153,3039.9,3038.7,3.0]
[1731168442197,0.8153,3039.7,3038.9,2.73324363]
[1731168442520,0.8153,3039.7,3038.9,2.79905055]
[1731168442688,0.8153,3039.7,3039.0,0.07392157]
[1731168445220,0.8153,3039.7,3038.3,3.07538299]
[1731168445527,0.8153,3039.7,3039.1,0.07383986]
[1731168445690,0.8153,3039.7,3038.3,3.07538299]
[1731168446029,0.8153,3039.4,3038.4,0.07441189]
[1731168446231,0.8153,3039.2,3038.4,0.07441189]
[1731168446380,0.8153,3039.2,3037.8,0.5]
[1731168446582,0.8153,3039.2,3038.5,0.07433016]
[1731168446781,0.8153,3039.2,3037.8,0.5]
[1731168447003,3.38153,3039.3,3037.8,0.5]
[1731168447004,0.7999,3038.9,3038.6,0.07424843]
[1731168447200,0.7999,3038.9,3037.8,0.5]
[1731168447432,3.0,3038.7,3037.8,0.5]
[1731168447633,0.7999,3038.5,3037.8,0.5]
[1731168448036,0.7999,3038.5,3037.9,0.07482065]
[1731168462463,0.7999,3038.4,3037.9,0.07482065]
[1731168465225,0.7999,3038.4,3037.8,0.5]
[1731168465426,0.7999,3038.4,3038.0,0.07425642]
[1731168465697,0.7999,3038.4,3037.8,0.5]
[1731168465969,0.7999,3038.4,3038.1,0.07417468]
[1731168466258,0.7999,3038.4,3038.2,0.07409294]
[1731168466467,0.7999,3038.4,3037.8,4.03434363]
[1731168466674,0.7999,3038.4,3038.3,0.07401121]
[1731168467159,0.7999,3038.4,3037.8,4.03434363]
[1731168467359,0.7999,3038.4,3038.3,0.07384284]
[1731168467827,0.7999,3038.4,3037.8,4.03434363]
[1731168468028,0.7999,3038.4,3038.3,0.07384284]
[1731168468365,0.7999,3038.4,3037.8,0.5]
[1731168468571,0.7999,3038.4,3038.3,0.07401121]
[1731168468862,0.7787,3038.3,3037.8,0.5]
[1731168474693,0.7787,3038.2,3037.8,0.5]
[1731168475468,0.7787,3038.0,3037.8,0.5]
[1731168480943,0.7787,3037.8,3037.5,0.1397772]
[1731168481144,0.7787,3037.6,3037.5,0.1397772]
[1731168481349,12.4918684,3037.6,3037.5,0.1397772]
[1731168486697,9.4918684,3037.6,3037.5,0.1397772]
[1731168488667,8.7131684,3037.6,3037.5,0.1397772]
[1731168488915,1.47499373,3038.1,3037.5,0.21499778]
[1731168489115,2.49380994,3038.1,3037.5,0.21499778]
[1731168489316,0.66749373,3038.1,3037.6,0.7934]
[1731168489620,0.66749373,3038.1,3037.7,0.07505701]
[1731168489766,0.04216101,3038.4,3037.7,0.07505701]
[1731168492880,0.66610707,3038.2,3037.7,0.07505701]
[1731168494579,0.66610707,3038.2,3037.7,2.80830064]
[1731168494913,0.66610707,3038.2,3037.8,0.7934]
[1731168495121,0.66610707,3038.2,3037.8,0.86837524]
[1731168495478,0.04216101,3038.4,3037.8,0.86837524]
[1731168495683,0.64351614,3038.3,3037.8,0.86837524]
[1731168497096,0.64351614,3038.3,3037.9,0.06583233]
[1731168497291,0.04216101,3038.4,3038.0,0.7934]
[1731168497497,0.04216101,3038.4,3038.2,0.7934]
[1731168497914,0.04216101,3038.4,3038.3,0.07456644]
[1731168498119,0.8075,3039.0,3037.8,0.7934]
[1731168498120,1.46496699,3039.0,3037.8,0.7934]
[1731168498328,0.21531182,3038.9,3038.3,0.07456644]
[1731168498620,0.21531182,3038.9,3037.8,0.7934]
[1731168498621,0.90346308,3038.9,3037.8,0.7934]
[1731168498798,0.8075,3038.8,3038.4,0.0744847]
[1731168499001,0.17109631,3038.7,3037.8,0.7934]
[1731168499197,0.17109631,3038.7,3037.9,0.07489347]
[1731168499395,0.8075,3038.6,3037.9,0.07489347]
[1731168500418,0.8075,3038.6,3037.6,0.7934]
[1731168500625,1.49565126,3038.6,3037.6,0.7934]
[1731168500810,0.46667476,3038.5,3037.6,0.7934]
[1731168501848,0.46667476,3038.5,3037.7,0.07505701]
[1731168506150,9.40131966,3038.8,3037.9,0.7934]
[1731168506151,8.7131684,3038.8,3037.9,0.7934]
[1731168506641,8.7131684,3038.8,3038.0,0.0748117]
[1731168507957,0.8128,3038.7,3038.0,0.0748117]
[1731168508748,0.8128,3038.6,3037.6,0.7583]
[1731168508901,0.8128,3038.4,3037.6,0.7583]
[1731168510643,0.8128,3038.4,3037.7,0.07505701]
[1731168511706,0.8128,3038.4,3037.5,0.1397772]
[1731168511911,0.8128,3038.4,3037.8,0.07497524]
[1731168512107,0.8128,3038.1,3037.5,0.1397772]
[1731168512351,0.8128,3037.9,3037.5,0.1397772]
[1731168517042,3.0,3038.0,3037.5,0.1397772]
[1731168517227,3.0,3038.0,3037.6,0.07516323]
[1731168517426,0.8128,3038.2,3037.6,0.07516323]
[1731168517622,2.23271436,3038.2,3037.5,0.1397772]
[1731168517842,2.23271436,3038.2,3037.6,0.07516323]
[1731168518053,2.23271436,3038.2,3037.5,0.1397772]
[1731168518353,2.23271436,3038.2,3037.7,0.07508145]
[1731168518513,2.23271436,3038.2,3037.6,0.07516323]
[1731168518714,2.23271436,3038.2,3037.5,0.1397772]
[1731168518938,2.23271436,3038.2,3037.7,0.07508145]
[1731168519135,2.23271436,3038.2,3037.6,0.07516323]
[1731168519313,0.52327144,3038.1,3037.5,0.1397772]
[1731168519525,0.52327144,3038.1,3037.7,0.07508145]
[1731168519737,0.52327144,3038.1,3037.5,0.1397772]
[1731168519938,0.52327144,3038.1,3037.8,0.07499968]
[1731168520255,0.52327144,3038.1,3037.5,0.1397772]
[1731168520453,0.52327144,3038.1,3037.9,0.0749179]
[1731168520758,0.52327144,3038.1,3037.5,0.1397772]
[1731168520759,0.27559858,3038.0,3037.5,0.1397772]
[1731168521325,0.27559858,3038.0,3037.6,0.07516323]
[1731168521530,0.27559858,3038.0,3037.5,0.1397772]
[1731168521917,0.27559858,3038.0,3037.6,0.07516323]
[1731168522127,0.27559858,3038.0,3037.5,0.1397772]
[1731168522443,0.27559858,3038.0,3037.6,0.07516323]
[1731168522656,0.27559858,3038.0,3037.5,0.1397772]
[1731168522856,0.27559858,3038.0,3037.7,0.07508145]
[1731168523069,0.27559858,3038.0,3037.5,0.1397772]
[1731168523368,0.27559858,3038.0,3037.8,0.07499968]
[1731168523542,0.27559858,3038.0,3037.5,0.1397772]
[1731168523933,0.27559858,3038.0,3037.6,0.07516323]
[1731168524335,0.27559858,3038.0,3037.5,0.1397772]
[1731168524761,0.27559858,3038.0,3037.6,0.07516323]
[1731168525068,0.27559858,3038.0,3037.5,0.1397772]
[1731168525243,0.27559858,3038.0,3037.7,0.07508145]
[1731168525444,0.27559858,3038.0,3037.5,0.1397772]
[1731168525661,0.27559858,3038.0,3037.8,0.07499968]
[1731168525844,0.27559858,3038.0,3037.5,0.1397772]
[1731168526172,0.27559858,3038.0,3037.9,0.0749179]
[1731168526352,0.27559858,3038.0,3037.5,0.1397772]
[1731168526743,0.27559858,3038.0,3037.6,0.07516323]
[1731168527043,0.27559858,3038.0,3037.5,0.1397772]
[1731168527230,8.7131684,3038.2,3037.6,0.8016]
[1731168527436,8.7131684,3038.2,3037.7,0.07508145]
[1731168529348,3.0,3038.5,3037.8,0.8016]
[1731168529665,1.44714437,3038.7,3037.9,0.0749179]
[1731168529968,0.17911666,3038.6,3037.9,0.0749179]
[1731168530182,0.86716103,3038.6,3037.9,0.0749179]
[1731168530469,0.86716103,3038.6,3037.8,0.8016]
[1731168531466,0.68804437,3038.5,3037.8,0.8016]
[1731168531672,0.63134795,3038.5,3037.8,0.8016]
[1731168531860,1.31939232,3038.5,3037.8,0.8016]
[1731168532438,0.68804437,3038.4,3037.8,0.8016]
[1731168532641,1.31939232,3038.5,3037.8,0.8016]
[1731168533371,0.68804437,3038.4,3037.8,0.8016]
[1731168533749,1.24110192,3038.4,3037.8,0.8016]
[1731168534157,0.55305755,3038.4,3037.8,0.8016]
[1731168534473,1.24110192,3038.4,3037.8,0.8016]
[1731168537781,1.24110192,3038.4,3037.5,0.1397772]
[1731168537782,1.44694437,3038.3,3037.6,0.7631]
[1731168538078,0.7589,3038.3,3037.7,0.07508145]
[1731168538243,3.88804456,3038.2,3037.6,0.7631]
[1731168539279,3.20000019,3038.2,3037.6,0.7631]
[1731168540041,3.88804456,3038.2,3037.6,0.7631]
[1731168542442,0.68804437,3038.1,3037.5,0.1397772]
[1731168542657,0.68804437,3038.0,3037.6,0.07516323]
[1731168542852,0.68804437,3038.0,3037.5,0.1397772]
[1731168543076,0.68804437,3037.9,3037.5,0.1397772]
[1731168543474,0.7589,3037.8,3037.5,0.1397772]
[1731168543891,0.68804437,3037.7,3037.5,0.1397772]
[1731168544243,1.44694437,3037.8,3037.5,0.1397772]
[1731168544445,0.93594546,3037.7,3037.5,0.1397772]
[1731168544875,0.24790109,3037.7,3037.5,0.1397772]
[1731168545282,0.93594546,3037.7,3037.5,0.1397772]
[1731168546294,0.24790109,3037.7,3037.5,0.1397772]
[1731168546444,0.93594546,3037.7,3037.5,0.1397772]
[1731168546649,0.46948455,3037.6,3037.5,0.1397772]
[1731168548457,0.24790109,3037.7,3037.5,0.1397772]
[1731168548664,0.68804437,3037.9,3037.5,0.8962772]
[1731168548975,4.03206656,3038.0,3037.5,0.8962772]
[1731168548976,3.68804437,3038.0,3037.5,0.8962772]
[1731168549354,0.68804437,3038.0,3037.5,0.8962772]
[1731168549752,0.68804437,3037.9,3037.5,0.8962772]
[1731168549948,0.68804437,3038.0,3037.5,0.8962772]
[1731168550150,0.7902,3037.8,3037.5,0.1397772]
[1731168550547,1.30397726,3037.9,3037.5,0.1397772]
[1731168552753,0.68804437,3037.8,3037.5,0.1397772]
[1731168552958,1.30397726,3037.9,3037.5,0.1397772]
[1731168553590,0.68804437,3037.8,3037.5,0.1397772]
[1731168553888,0.68804437,3037.8,3035.8,0.7565]
[1731168553889,0.7902,3037.3,3035.8,0.7565]